fUSD/lending_fUSD_20240420
["ID","MTS","AMOUNT","RATE_DAILY","PERIOD"]
[323019588,1713592255859,-500.0,0.00015616,2]
[323019589,1713592255870,-500.0,0.00015616,2]
[323019590,1713592255880,-218.38686372,0.00015616,2]
[323019591,1713592255889,-500.0,0.00015616,2]
[323019592,1713592255901,-500.0,0.00015616,2]
[323019593,1713592255910,-1117.37,0.00015616,2]
[323019594,1713592255919,-500.0,0.00015616,2]
[323019595,1713592255928,-500.0,0.00015616,2]
[323019596,1713592255937,-500.0,0.00015616,2]
[323019597,1713592255947,-500.0,0.00015616,2]
[323019598,1713592255956,-594.74,0.00015616,2]
[323019599,1713592255965,-500.0,0.00015616,2]
[323019600,1713592255974,-500.0,0.00015616,2]
[323019601,1713592255983,-505.66,0.00015616,2]
[323019602,1713592255993,-500.0,0.00015616,2]
[323019603,1713592256002,-517.45612616,0.00015616,2]
[323019604,1713592256011,-500.0,0.00015616,2]
[323019605,1713592256020,-500.0,0.00015616,2]
[323019606,1713592256029,-500.0,0.00015616,2]
[323019607,1713592256038,-598.22,0.00015616,2]
[323019608,1713592256047,-519.98049,0.00015616,2]
[323019609,1713592256057,-500.0,0.00015616,2]
[323019610,1713592256067,-712.4,0.00015616,2]
[323019611,1713592256076,-500.0,0.00015616,2]
[323019612,1713592256086,-591.71960888,0.00015616,2]
[323019613,1713592256095,-500.0,0.00015616,2]
[323019614,1713592256105,-151.0,0.00015616,2]
[323019615,1713592256115,-695.21,0.00015616,2]
[323019616,1713592256125,-151.0,0.00015616,2]
[323019617,1713592256135,-151.0,0.00015616,2]
[323019618,1713592256144,-706.3,0.00015616,2]
[323019619,1713592256154,-500.0,0.00015616,2]
[323019620,1713592256164,-554.98,0.00015616,2]
[323019621,1713592256173,-500.0,0.00015616,2]
[323019622,1713592256183,-500.0,0.00015616,2]
[323019623,1713592256192,-695.4,0.00015616,2]
[323019624,1713592256201,-797.96,0.00015616,2]
[323019625,1713592256210,-500.0,0.00015616,2]
[323019626,1713592256219,-593.77544355,0.00015616,2]
[323019627,1713592256228,-500.0,0.00015616,2]
[323019628,1713592256237,-500.0,0.00015616,2]
[323019629,1713592256246,-274.798174,0.00015616,2]
[323019630,1713592256256,-274.798174,0.00015616,2]
[323019631,1713592256268,-500.0,0.00015616,2]
[323019632,1713592256277,-274.798174,0.00015616,2]
[323019633,1713592256287,-500.0,0.00015616,2]
[323019634,1713592256297,-151.0,0.00015616,2]
[323019635,1713592256307,-923.28,0.00015616,2]
[323019636,1713592256317,-151.0,0.00015616,2]
[323019637,1713592256327,-151.0,0.00015616,2]
[323019638,1713592256336,-274.798174,0.00015616,2]
[323019639,1713592256347,-274.798174,0.00015616,2]
[323019640,1713592256357,-274.798174,0.00015616,2]
[323019641,1713592256368,-500.0,0.00015616,2]
[323019642,1713592256377,-628.83,0.00015616,2]
[323019643,1713592256387,-500.0,0.00015616,2]
[323019644,1713592256396,-500.0,0.00015616,2]
[323019645,1713592256405,-524.45,0.00015616,2]
[323019646,1713592256414,-500.0,0.00015616,2]
[323019647,1713592256422,-500.0,0.00015616,2]
[323019648,1713592256434,-500.0,0.00015616,2]
[323019649,1713592256443,-911.81,0.00015616,2]
[323019650,1713592256454,-547.4,0.00015616,2]
[323019651,1713592256463,-500.0,0.00015616,2]
[323019652,1713592256472,-500.0,0.00015616,2]
[323019653,1713592256481,-500.0,0.00015616,2]
[323019654,1713592256490,-611.2,0.00015616,2]
[323019655,1713592256500,-500.0,0.00015616,2]
[323019656,1713592256509,-500.0,0.00015616,2]
[323019657,1713592256519,-151.0,0.00015616,2]
[323019658,1713592256529,-151.0,0.00015616,2]
[323019659,1713592256539,-151.0,0.00015616,2]
[323019660,1713592256548,-500.0,0.00015616,2]
[323019661,1713592256558,-554.61,0.00015616,2]
[323019662,1713592256568,-500.0,0.00015616,2]
[323019663,1713592256577,-500.0,0.00015616,2]
[323019664,1713592256587,-500.0,0.00015616,2]
[323019665,1713592256598,-151.0,0.00015616,2]
[323019666,1713592256607,-249.820847,0.00015616,2]
[323019667,1713592256616,-151.0,0.00015616,2]
[323019668,1713592256626,-152.398028,0.00015616,2]
[323019669,1713592256635,-500.0,0.00015616,2]
[323019670,1713592256644,-500.0,0.00015616,2]
[323019671,1713592256653,-817.35,0.00015616,2]
[323019672,1713592256663,-708.95,0.00015616,2]
[323019673,1713592256674,-500.0,0.00015616,2]
[323019674,1713592256684,-500.0,0.00015616,2]
[323019675,1713592256692,-500.0,0.00015616,2]
[323019676,1713592256702,-500.0,0.00015616,2]
[323019677,1713592256711,-500.0,0.00015616,2]
[323019678,1713592256720,-500.0,0.00015616,2]
[323019679,1713592256732,-284.448748,0.00015616,2]
[323019680,1713592256741,-500.0,0.00015616,2]
[323019681,1713592256750,-500.0,0.00015616,2]
[323019682,1713592256758,-500.0,0.00015616,2]
[323019683,1713592256767,-639.32,0.00015616,2]
[323019684,1713592256776,-642.12,0.00015616,2]
[323019685,1713592256785,-500.0,0.00015616,2]
[323019686,1713592256794,-567.86,0.00015616,2]
[323019687,1713592256803,-500.0,0.00015616,2]
[323019688,1713592256812,-500.0,0.00015616,2]
[323019689,1713592256822,-500.0,0.00015616,2]
[323019690,1713592256831,-500.0,0.00015616,2]
[323019691,1713592256840,-715.34,0.00015616,2]
[323019692,1713592256849,-1256.28,0.00015616,2]
[323019693,1713592256858,-500.0,0.00015616,2]
[323019694,1713592256868,-955.12,0.00015616,2]
[323019695,1713592256877,-643.75,0.00015616,2]
[323019696,1713592256886,-661.09,0.00015616,2]
[323019697,1713592256895,-500.0,0.00015616,2]
[323019698,1713592256905,-500.0,0.00015616,2]
[323019699,1713592256914,-1677.53,0.00015616,2]
[323019700,1713592256923,-151.771809,0.00015616,2]
[323019701,1713592256931,-562.54,0.00015616,2]
[323019702,1713592256941,-547.74,0.00015616,2]
[323019703,1713592256950,-500.0,0.00015616,2]
[323019704,1713592256959,-530.92,0.00015616,2]
[323019705,1713592256968,-236.88059458,0.00015616,2]
[323019706,1713592256976,-500.0,0.00015616,2]
[323019707,1713592256986,-500.0,0.00015616,2]
[323019708,1713592256995,-853.28,0.00015616,2]
[323019709,1713592257004,-577.92,0.00015616,2]
[323019710,1713592257013,-500.0,0.00015616,2]
[323019711,1713592257023,-823.88,0.00015616,2]
[323019712,1713592257032,-872.87,0.00015616,2]
[323019713,1713592257042,-332.08142901,0.00015616,2]
[323019714,1713592257052,-500.0,0.00015616,2]
[323019715,1713592257061,-791.88,0.00015616,2]
[323019716,1713592257071,-500.0,0.00015616,2]
[323019717,1713592257080,-663.96,0.00015616,2]
[323019718,1713592257090,-686.26,0.00015616,2]
[323019719,1713592257099,-500.0,0.00015616,2]
[323019720,1713592257108,-168.167123,0.00015616,2]
[323019721,1713592257118,-151.0,0.00015616,2]
[323019722,1713592257127,-1133.41,0.00015616,2]
[323019723,1713592257137,-168.167123,0.00015616,2]
[323019724,1713592257146,-151.0,0.00015616,2]
[323019725,1713592257156,-151.0,0.00015616,2]
[323019726,1713592257166,-151.0,0.00015616,2]
[323019727,1713592257177,-168.167123,0.00015616,2]
[323019728,1713592257186,-151.0,0.00015616,2]
[323019729,1713592257195,-151.0,0.00015616,2]
[323019730,1713592257205,-151.0,0.00015616,2]
[323019731,1713592257213,-151.0,0.00015616,2]
[323019732,1713592257223,-500.0,0.00015616,2]
[323019733,1713592257232,-151.0,0.00015616,2]
[323019734,1713592257241,-500.0,0.00015616,2]
[323019735,1713592257250,-284.867413,0.00015616,2]
[323019736,1713592257260,-793.59,0.00015616,2]
[323019737,1713592257272,-500.0,0.00015616,2]
[323019738,1713592257281,-500.0,0.00015616,2]
[323019739,1713592257291,-679.5,0.00015616,2]
[323019740,1713592257299,-168.167123,0.00015616,2]
[323019741,1713592257310,-168.167123,0.00015616,2]
[323019742,1713592257319,-151.0,0.00015616,2]
[323019743,1713592257329,-168.167123,0.00015616,2]
[323019744,1713592257338,-151.0,0.00015616,2]
[323019745,1713592257348,-500.0,0.00015616,2]
[323019746,1713592257358,-151.0,0.00015616,2]
[323019747,1713592257370,-500.0,0.00015616,2]
[323019748,1713592257379,-500.0,0.00015616,2]
[323019749,1713592257388,-500.0,0.00015616,2]
[323019750,1713592257397,-500.0,0.00015616,2]
[323019751,1713592257407,-151.0,0.00015616,2]
[323019752,1713592257416,-152.584658,0.00015616,2]
[323019753,1713592257425,-500.0,0.00015616,2]
[323019754,1713592257435,-500.0,0.00015616,2]
[323019755,1713592257444,-507.62,0.00015616,2]
[323019756,1713592257453,-729.94,0.00015616,2]
[323019757,1713592257462,-640.29,0.00015616,2]
[323019758,1713592257471,-500.0,0.00015616,2]
[323019759,1713592257480,-1368.13,0.00015616,2]
[323019760,1713592257489,-500.0,0.00015616,2]
[323019761,1713592257498,-553.67,0.00015616,2]
[323019762,1713592257506,-500.0,0.00015616,2]
[323019763,1713592257516,-500.0,0.00015616,2]
[323019764,1713592257525,-506.72,0.00015616,2]
[323019765,1713592257535,-500.0,0.00015616,2]
[323019766,1713592257544,-500.0,0.00015616,2]
[323019767,1713592257553,-500.0,0.00015616,2]
[323019768,1713592257562,-500.0,0.00015616,2]
[323019769,1713592257571,-916.34,0.00015616,2]
[323019770,1713592257580,-500.0,0.00015616,2]
[323019771,1713592257589,-500.0,0.00015616,2]
[323019772,1713592257598,-500.0,0.00015616,2]
[323019773,1713592257612,-500.0,0.00015616,2]
[323019774,1713592257625,-780.72,0.00015616,2]
[323019775,1713592257635,-500.0,0.00015616,2]
[323019776,1713592257644,-152.906211,0.00015616,2]
[323019777,1713592257654,-596.75,0.00015616,2]
[323019778,1713592257663,-152.906211,0.00015616,2]
[323019779,1713592257673,-500.0,0.00015616,2]
[323019780,1713592257683,-152.906211,0.00015616,2]
[323019781,1713592257693,-545.98,0.00015616,2]
[323019782,1713592257702,-500.0,0.00015616,2]
[323019783,1713592257712,-152.906211,0.00015616,2]
[323019784,1713592257721,-152.906211,0.00015616,2]
[323019785,1713592257731,-152.906211,0.00015616,2]
[323019786,1713592257741,-726.37,0.00015616,2]
[323019787,1713592257753,-639.88,0.00015616,2]
[323019788,1713592257762,-511.34,0.00015616,2]
[323019789,1713592257772,-731.57,0.00015616,2]
[323019790,1713592257782,-500.0,0.00015616,2]
[323019791,1713592257791,-639.5,0.00015616,2]
[323019792,1713592257801,-541.5,0.00015616,2]
[323019793,1713592257811,-500.0,0.00015616,2]
[323019794,1713592257821,-500.0,0.00015616,2]
[323019795,1713592257831,-500.0,0.00015616,2]
[323019796,1713592257840,-707.28,0.00015616,2]
[323019797,1713592257850,-500.0,0.00015616,2]
[323019798,1713592257860,-517.25,0.00015616,2]
[323019799,1713592257872,-500.0,0.00015616,2]
[323019800,1713592257882,-500.0,0.00015616,2]
[323019801,1713592257894,-500.0,0.00015616,2]
[323019802,1713592257907,-732.97,0.00015616,2]
[323019803,1713592257920,-500.0,0.00015616,2]
[323019804,1713592257933,-500.0,0.00015616,2]
[323019805,1713592257944,-967.5,0.00015616,2]
[323019806,1713592257957,-500.0,0.00015616,2]
[323019807,1713592257969,-500.0,0.00015616,2]
[323019808,1713592257980,-509.25,0.00015616,2]
[323019809,1713592257991,-500.0,0.00015616,2]
[323019810,1713592258004,-1077.71,0.00015616,2]
[323019811,1713592258015,-507.28,0.00015616,2]
[323019812,1713592258027,-727.84,0.00015616,2]
[323019813,1713592258039,-500.0,0.00015616,2]
[323019814,1713592258050,-500.0,0.00015616,2]
[323019815,1713592258062,-500.0,0.00015616,2]
[323019816,1713592258075,-733.5,0.00015616,2]
[323019817,1713592258086,-540.766131,0.00015616,2]
[323019818,1713592258099,-540.766131,0.00015616,2]
[323019819,1713592258111,-941.43,0.00015616,2]
[323019820,1713592258124,-1603.88,0.00015616,2]
[323019821,1713592258134,-540.766131,0.00015616,2]
[323019822,1713592258143,-1141.47,0.00015616,2]
[323019823,1713592258155,-500.0,0.00015616,2]
[323019824,1713592258166,-500.0,0.00015616,2]
[323019825,1713592258177,-500.0,0.00015616,2]
[323019826,1713592258188,-500.0,0.00015616,2]
[323019827,1713592258200,-500.0,0.00015616,2]
[323019828,1713592258211,-540.766131,0.00015616,2]
[323019829,1713592258222,-500.0,0.00015616,2]
[323019830,1713592258234,-540.766131,0.00015616,2]
[323019831,1713592258245,-500.0,0.00015616,2]
[323019832,1713592258257,-1097.42,0.00015616,2]
[323019833,1713592258271,-540.766131,0.00015616,2]
[323019834,1713592258281,-884.41,0.00015616,2]
[323019835,1713592258291,-500.0,0.00015616,2]
[323019836,1713592258301,-151.0,0.00015616,2]
[323019837,1713592258314,-151.0,0.00015616,2]
[323019838,1713592258327,-152.009452,0.00015616,2]
[323019839,1713592258338,-500.0,0.00015616,2]
[323019840,1713592258349,-1309.44,0.00015616,2]
[323019841,1713592258362,-500.0,0.00015616,2]
[323019842,1713592258377,-497.33,0.00015616,2]
[323019843,1713592258388,-799.25,0.00015616,2]
[323019844,1713592258400,-656.65,0.00015616,2]
[323019845,1713592258412,-1516.92,0.00015616,2]
[323019846,1713592258424,-500.0,0.00015616,2]
[323019847,1713592258434,-500.0,0.00015616,2]
[323019848,1713592258446,-1603.54,0.00015616,2]
[323019849,1713592258456,-670.85,0.00015616,2]
[323019850,1713592258468,-346.97695639,0.00015616,2]
[323019851,1713592258478,-500.0,0.00015616,2]
[323019852,1713592258489,-755.27,0.00015616,2]
[323019853,1713592258500,-861.77,0.00015616,2]
[323019854,1713592258511,-866.02,0.00015616,2]
[323019855,1713592258523,-357.95833288,0.00015616,2]
[323019856,1713592258538,-153.994026,0.00015616,2]
[323019857,1713592258550,-153.994026,0.00015616,2]
[323019858,1713592258561,-500.0,0.00015616,2]
[323019859,1713592258574,-153.994026,0.00015616,2]
[323019860,1713592258585,-153.994026,0.00015616,2]
[323019861,1713592258595,-1073.34,0.00015616,2]
[323019862,1713592258605,-622.24,0.00015616,2]
[323019863,1713592258616,-282.396864,0.00015616,2]
[323019864,1713592258626,-151.0,0.00015616,2]
[323019865,1713592258636,-153.994026,0.00015616,2]
[323019866,1713592258647,-282.396864,0.00015616,2]
[323019867,1713592258659,-151.0,0.00015616,2]
[323019868,1713592258670,-500.0,0.00015616,2]
[323019869,1713592258681,-151.0,0.00015616,2]
[323019870,1713592258692,-282.396864,0.00015616,2]
[323019871,1713592258702,-153.994026,0.00015616,2]
[323019872,1713592258717,-151.0,0.00015616,2]
[323019873,1713592258728,-282.396864,0.00015616,2]
[323019874,1713592258739,-153.994026,0.00015616,2]
[323019875,1713592258749,-500.0,0.00015616,2]
[323019876,1713592258759,-153.994026,0.00015616,2]
[323019877,1713592258769,-589.94,0.00015616,2]
[323019878,1713592258780,-306.036012,0.00015616,2]
[323019879,1713592258793,-987.1,0.00015616,2]
[323019880,1713592258804,-306.036012,0.00015616,2]
[323019881,1713592258815,-164.89058074,0.00015616,2]
[323019882,1713592259557,-335.10941926,0.00015616,2]
[323019883,1713592259568,-282.396864,0.00015616,2]
[323019884,1713592259580,-282.396864,0.00015616,2]
[323019885,1713592259592,-282.396864,0.00015616,2]
[323019886,1713592259603,-282.396864,0.00015616,2]
[323019887,1713592259616,-500.0,0.00015616,2]
[323019888,1713592259626,-745.13,0.00015616,2]
[323019889,1713592259635,-1162.58,0.00015616,2]
[323019890,1713592259646,-678.72,0.00015616,2]
[323019891,1713592259656,-500.0,0.00015616,2]
[323019892,1713592259666,-500.0,0.00015616,2]
[323019893,1713592259676,-682.94,0.00015616,2]
[323019894,1713592259687,-1653.03,0.00015616,2]
[323019895,1713592259697,-633.64,0.00015616,2]
[323019896,1713592259708,-500.0,0.00015616,2]
[323019897,1713592259718,-500.0,0.00015616,2]
[323019898,1713592259735,-306.036012,0.00015616,2]
[323019899,1713592259747,-811.236803,0.00015616,2]
[323019900,1713592259757,-811.236803,0.00015616,2]
[323019901,1713592259768,-500.0,0.00015616,2]
[323019902,1713592259779,-1517.59,0.00015616,2]
[323019903,1713592259789,-811.236803,0.00015616,2]
[323019904,1713592259799,-811.236803,0.00015616,2]
[323019905,1713592259810,-947.11,0.00015616,2]
[323019906,1713592259821,-654.74,0.00015616,2]
[323019907,1713592259831,-500.0,0.00015616,2]
[323019908,1713592259842,-811.236803,0.00015616,2]
[323019909,1713592259852,-811.236803,0.00015616,2]
[323019910,1713592259863,-811.236803,0.00015616,2]
[323019911,1713592259874,-306.036012,0.00015616,2]
[323019912,1713592260646,-633.02,0.00015616,2]
[323019913,1713592260674,-811.236803,0.00015616,2]
[323019914,1713592260690,-927.95,0.00015616,2]
[323019915,1713592260699,-306.036012,0.00015616,2]
[323019916,1713592260708,-306.036012,0.00015616,2]
[323019917,1713592260718,-492.63,0.00015616,2]
[323019918,1713592260728,-1391.13,0.00015616,2]
[323019919,1713592260737,-500.0,0.00015616,2]
[323019920,1713592260746,-500.0,0.00015616,2]
[323019921,1713592260756,-500.0,0.00015616,2]
[323019922,1713592260764,-1331.98,0.00015616,2]
[323019923,1713592260774,-890.5,0.00015616,2]
[323019924,1713592260784,-1061.55,0.00015616,2]
[323019925,1713592260793,-538.35,0.00015616,2]
[323019926,1713592260802,-500.0,0.00015616,2]
[323019927,1713592260812,-551.45,0.00015616,2]
[323019928,1713592260821,-588.26,0.00015616,2]
[323019929,1713592260831,-237.24158,0.00015616,2]
[323019930,1713592260840,-1157.82,0.00015616,2]
[323019931,1713592260850,-237.24158,0.00015616,2]
[323019932,1713592260860,-237.24158,0.00015616,2]
[323019933,1713592260870,-237.24158,0.00015616,2]
[323019934,1713592260880,-500.0,0.00015616,2]
[323019935,1713592260889,-602.84,0.00015616,2]
[323019936,1713592260899,-178.314559,0.00015616,2]
[323019937,1713592260909,-178.314559,0.00015616,2]
[323019938,1713592260919,-556.8,0.00015616,2]
[323019939,1713592260929,-178.314559,0.00015616,2]
[323019940,1713592260938,-237.24158,0.00015616,2]
[323019941,1713592260948,-178.314559,0.00015616,2]
[323019942,1713592260958,-237.24158,0.00015616,2]
[323019943,1713592260968,-222.559406,0.00015616,2]
[323019944,1713592260977,-237.24158,0.00015616,2]
[323019945,1713592260987,-222.559406,0.00015616,2]
[323019946,1713592260997,-362.123824,0.00015616,2]
[323019947,1713592261007,-222.559406,0.00015616,2]
[323019948,1713592261016,-237.24158,0.00015616,2]
[323019949,1713592261025,-362.123824,0.00015616,2]
[323019950,1713592261035,-222.559406,0.00015616,2]
[323019951,1713592261045,-500.0,0.00015616,2]
[323019952,1713592261055,-362.123824,0.00015616,2]
[323019953,1713592261066,-362.123824,0.00015616,2]
[323019954,1713592261075,-178.314559,0.00015616,2]
[323019955,1713592261084,-611.21595316,0.00015616,2]
[323019956,1713592261094,-178.314559,0.00015616,2]
[323019957,1713592261103,-528.25,0.00015616,2]
[323019958,1713592261112,-1507.68,0.00015616,2]
[323019959,1713592261122,-178.314559,0.00015616,2]
[323019960,1713592261132,-222.559406,0.00015616,2]
[323019961,1713592261141,-178.314559,0.00015616,2]
[323019962,1713592261151,-222.559406,0.00015616,2]
[323019963,1713592261160,-222.559406,0.00015616,2]
[323019964,1713592261169,-362.123824,0.00015616,2]
[323019965,1713592261179,-222.559406,0.00015616,2]
[323019966,1713592261188,-362.123824,0.00015616,2]
[323019967,1713592261197,-1026.42744923,0.00015616,2]
[323019968,1713592261213,-296.44255077,0.00015616,2]
[323019969,1713592261223,-135.19831314,0.00015616,2]
[323019970,1713592261235,-364.80168686,0.00015616,2]
[323019971,1713592261244,-135.19831314,0.00015616,2]
[323019972,1713592263193,-447.70511967,0.00014968,2]
[323019973,1713592263236,-1174.15982391,0.00014968,2]
[323019974,1713592263245,-500.0,0.00015068,2]
[323019975,1713592263256,-500.0,0.00015068,2]
[323019976,1713592263266,-500.0,0.00015068,2]
[323019977,1713592263275,-172.46355181,0.00015068,2]
[323019978,1713592263284,-577.57,0.00015068,2]
[323019979,1713592263293,-500.0,0.00015068,2]
[323019980,1713592263304,-500.0,0.00015342,2]
[323019981,1713592263314,-500.0,0.00015342,2]
[323019982,1713592263324,-151.0,0.00015342,2]
[323019983,1713592263333,-500.0,0.00015342,2]
[323019984,1713592263345,-253.901863,0.00015342,2]
[323019985,1713592263355,-577.57,0.00015342,2]
[323019986,1713592263364,-500.0,0.00015342,2]
[323019987,1713592263377,-226.92551086,0.00015616,2]
[323019988,1713592263386,-623.55,0.00015616,2]
[323019989,1713592263395,-362.123824,0.00015616,2]
[323019990,1713592263405,-500.0,0.00015616,2]
[323019991,1713592263414,-500.0,0.00015616,2]
[323019992,1713592263423,-547.23,0.00015616,2]
[323019993,1713592263432,-779.25,0.00015616,2]
[323019994,1713592263441,-500.0,0.00015616,2]
[323019995,1713592263450,-500.0,0.00015616,2]
[323019996,1713592263459,-500.0,0.00015616,2]
[323019997,1713592263469,-500.0,0.00015616,2]
[323019998,1713592263479,-1195.48,0.00015616,2]
[323019999,1713592263488,-152.586028,0.00015616,2]
[323020000,1713592263497,-500.0,0.00015616,2]
[323020001,1713592263506,-500.0,0.00015616,2]
[323020002,1713592263515,-151.0,0.00015616,2]
[323020003,1713592263524,-151.0,0.00015616,2]
[323020004,1713592263534,-151.0,0.00015616,2]
[323020005,1713592263544,-151.0,0.00015616,2]
[323020006,1713592263553,-500.0,0.00015616,2]
[323020007,1713592263562,-1059.71,0.00015616,2]
[323020008,1713592263571,-1276.76,0.00015616,2]
[323020009,1713592263580,-1740.53,0.00015616,2]
[323020010,1713592263589,-902.0,0.00015616,2]
[323020011,1713592263599,-574.23,0.00015616,2]
[323020012,1713592263608,-500.0,0.00015616,2]
[323020013,1713592263617,-2348.63,0.00015616,2]
[323020014,1713592263629,-602.82804167,0.00015616,2]
[323020015,1713592263638,-522.5,0.00015616,2]
[323020016,1713592263647,-294.464797,0.00015616,2]
[323020017,1713592263656,-294.464797,0.00015616,2]
[323020018,1713592263665,-500.0,0.00015616,2]
[323020019,1713592263674,-294.464797,0.00015616,2]
[323020020,1713592263683,-294.464797,0.00015616,2]
[323020021,1713592263694,-500.0,0.00015616,2]
[323020022,1713592263704,-500.0,0.00015616,2]
[323020023,1713592263714,-542.8,0.00015616,2]
[323020024,1713592263724,-294.464797,0.00015616,2]
[323020025,1713592263734,-294.464797,0.00015616,2]
[323020026,1713592263743,-1132.06,0.00015616,2]
[323020027,1713592263752,-662.17,0.00015616,2]
[323020028,1713592263762,-294.464797,0.00015616,2]
[323020029,1713592263771,-294.464797,0.00015616,2]
[323020030,1713592263780,-948.1,0.00015616,2]
[323020031,1713592263789,-601.84,0.00015616,2]
[323020032,1713592263798,-2475.230557,0.00015616,2]
[323020033,1713592263807,-913.69,0.00015616,2]
[323020034,1713592263816,-500.0,0.00015616,2]
[323020035,1713592263826,-2475.230557,0.00015616,2]
[323020036,1713592263835,-844.189566,0.00015616,2]
[323020037,1713592263845,-844.189566,0.00015616,2]
[323020038,1713592263854,-2475.230557,0.00015616,2]
[323020039,1713592263862,-844.189566,0.00015616,2]
[323020040,1713592263873,-844.189566,0.00015616,2]
[323020041,1713592263882,-156.19651,0.00015616,2]
[323020042,1713592263892,-2475.230557,0.00015616,2]
[323020043,1713592263901,-500.0,0.00015616,2]
[323020044,1713592263911,-2475.230557,0.00015616,2]
[323020045,1713592263921,-500.0,0.00015616,2]
[323020046,1713592263930,-500.0,0.00015616,2]
[323020047,1713592264149,-539.01,0.00015616,2]
[323020048,1713592264216,-624.51,0.00015616,2]
[323020049,1713592264226,-1008.81,0.00015616,2]
[323020050,1713592264235,-2309.15,0.00015616,2]
[323020051,1713592264244,-844.189566,0.00015616,2]
[323020052,1713592264254,-844.189566,0.00015616,2]
[323020053,1713592264268,-500.0,0.00015616,2]
[323020054,1713592264277,-844.189566,0.00015616,2]
[323020055,1713592264286,-500.0,0.00015616,2]
[323020056,1713592264295,-844.189566,0.00015616,2]
[323020057,1713592264305,-500.0,0.00015616,2]
[323020058,1713592264315,-1413.98,0.00015616,2]
[323020059,1713592264324,-500.0,0.00015616,2]
[323020060,1713592264335,-5435.24,0.00015616,2]
[323020061,1713592264345,-151.0,0.00015616,2]
[323020062,1713592264354,-3815.88,0.00015616,2]
[323020063,1713592264363,-151.0,0.00015616,2]
[323020064,1713592264373,-1367.59,0.00015616,2]
[323020065,1713592264382,-151.0,0.00015616,2]
[323020066,1713592264392,-526.55,0.00015616,2]
[323020067,1713592264401,-151.0,0.00015616,2]
[323020068,1713592264410,-500.0,0.00015616,2]
[323020069,1713592264419,-500.0,0.00015616,2]
[323020070,1713592264428,-500.0,0.00015616,2]
[323020071,1713592264438,-151.0,0.00015616,2]
[323020072,1713592264451,-153.464442,0.00015616,2]
[323020073,1713592264465,-1292.66,0.00015616,2]
[323020074,1713592264474,-500.0,0.00015616,2]
[323020075,1713592264483,-500.0,0.00015616,2]
[323020076,1713592264492,-500.0,0.00015616,2]
[323020077,1713592264501,-500.0,0.00015616,2]
[323020078,1713592264510,-20694.86,0.00015616,2]
[323020079,1713592264519,-500.0,0.00015616,2]
[323020080,1713592264527,-500.0,0.00015616,2]
[323020081,1713592264537,-151.0,0.00015616,2]
[323020082,1713592264546,-151.0,0.00015616,2]
[323020083,1713592264554,-151.0,0.00015616,2]
[323020084,1713592264563,-500.0,0.00015616,2]
[323020085,1713592264572,-500.0,0.00015616,2]
[323020086,1713592264581,-155.312991,0.00015616,2]
[323020087,1713592264591,-1261.83,0.00015616,2]